Workbook

Sheet Eingabe
A1: Berechnung Ferienbelegung
B4: Basisbelegung | I4: Ferienbelegung | O4: Differenz
A5: Name Kind | B5: Mo | C5: Di | D5: Mi | E5: Do | F5: Fr | G5: Total | I5: Mo | J5: Di | K5: Mi | L5: Do | M5: Fr | N5: Total | P5: Anz. Wochen Betreuung pro Jahr | Q5: Anz. benötigte Wochen Ferienbetreuung | R5: Ferienbetreuung in Belegungsprozent | S5: Vertraglich vereinbarte Belegung
B6: 0 | C6: 0 | D6: 0 | E6: 0 | F6: 0 | G6: =(B6+C6+D6+E6+F6) -> 0 | I6: 0 | J6: 0 | K6: 0 | L6: 0 | M6: 0 | N6: =(I6+J6+K6+L6+M6) -> 0 | O6: =N6-G6 -> 0 | P6: 47 | Q6: 0 | R6: =O6/P6*Q6 -> 0 | S6: =G6+R6 -> 0

Sheet Tabelle1
B1: Berechnung der Ferienbelegung / Berechnungsprinzip und Beispiele
B2: Prinzip: Differenz zur Basisbelegung : (230:5=) 46 = Zusatz pro Woche mal betroffene Ferienwochen = Belegungszusatz (gerundet) | P2: Zusatz% pro beanspruchte Ferienwoche
B5: Basisbelegung | I5: Ferienbelegung | O5: Differenz
A6: Name Kind | B6: Mo | C6: Di | D6: Mi | E6: Do | F6: Fr | G6: Total | I6: Mo | J6: Di | K6: Mi | L6: Do | M6: Fr | N6: Total | P6: 1W | Q6: 2W | R6: 3W | S6: 4W | T6: 5W | U6: 6W | V6: 7W | W6: 8W
A7: Kevin Muster | B7: 50 | C7: 70 | D7: 70 | G7: =(B7+C7+D7+E7+F7)/5 -> 38 | I7: 100 | J7: 100 | K7: 100 | N7: =(I7+J7+K7+L7+M7)/5 -> 60 | O7: =N7-G7 -> 22 | P7: =O7/46 -> 0.4782608696 | Q7: =P7*2 -> 0.9565217391 | R7: =P7*3 -> 1.434782609 | S7: =P7*4 -> 1.913043478 | T7: =P7*5 -> 2.391304348 | U7: =P7*6 -> 2.869565217 | V7: =P7*7 -> 3.347826087 | W7: =P7*8 -> 3.826086957
A8: Zoe Beispiel | B8: 70 | C8: 20 | E8: 70 | F8: 70 | G8: =(B8+C8+D8+E8+F8)/5 -> 46 | I8: 100 | J8: 100 | L8: 100 | M8: 100 | N8: =(I8+J8+K8+L8+M8)/5 -> 80 | O8: 34 | P8: =O8/46 -> 0.7391304348 | Q8: =P8*2 -> 1.47826087 | R8: =P8*3 -> 2.217391304 | S8: =P8*4 -> 2.956521739 | T8: =P8*5 -> 3.695652174 | U8: =P8*6 -> 4.434782609 | V8: =P8*7 -> 5.173913043 | W8: =P8*8 -> 5.913043478
G9: 0 | N9: 0 | O9: 0 | P9: =O9/46 -> 0 | Q9: 0 | R9: 0 | S9: 0 | T9: 0 | U9: 0 | V9: 0 | W9: 0
G10: 0 | N10: 0 | O10: 0 | P10: 0 | Q10: 0 | R10: 0 | S10: 0 | T10: 0 | U10: 0 | V10: 0 | W10: 0
G11: 0 | N11: 0 | O11: 0 | P11: 0 | Q11: 0 | R11: 0 | S11: 0 | T11: 0 | U11: 0 | V11: 0 | W11: 0
G12: 0 | N12: 0 | O12: 0 | P12: 0 | Q12: 0 | R12: 0 | S12: 0 | T12: 0 | U12: 0 | V12: 0 | W12: 0
G13: 0 | N13: 0 | O13: 0 | P13: 0 | Q13: 0 | R13: 0 | S13: 0 | T13: 0 | U13: 0 | V13: 0 | W13: 0
A14: Spezialfall | P14: 0
A15: Tanja Austritt1 | B15: 50 | C15: 50 | D15: 70 | E15: 20 | G15: 38 | I15: 100 | J15: 100 | K15: 100 | L15: 100 | N15: 80 | O15: =N15-G15 -> 42 | P15: =O15/28 -> 1.5 | Q15: 3 | R15: 4.5 | S15: 6 | T15: 7.5 | U15: 9 | V15: 10.5 | W15: 12
G16: 0 | N16: 0 | O16: =N16-G16 -> 0 | P16: 0 | Q16: 0 | R16: 0 | S16: 0 | T16: 0 | U16: 0 | V16: 0 | W16: 0
G17: 0 | N17: 0 | O17: =N17-G17 -> 0 | P17: 0 | Q17: 0 | R17: 0 | S17: 0 | T17: 0 | U17: 0 | V17: 0 | W17: 0
A19: 1 Spezialfall: Tanja tritt Mitte Sommerferien, d.h. vor den Betriebsferien aus. Die zusätzliche Ferienbetreuung braucht sie während der Sportferien, den Frühlingsferien sowie während der 3 Wochen Sommerferien, d.h. während insgesamt 6 Wochen; Da sie austritt, bezieht sich die Ferienbelegung auf die Anzahl noch beanspruchter Wochen, im Falle von Tanja auf 28 statt auf 46 Wochen; die Belegungsdifferenz wird demnach durch 28 geteilt, es resultieren 1,5% Zusatzbelegung pro beanspruchte Ferienwoche, d.h. 9% zusätzlich für die 6 Wochen.

Sheet Tabelle2

Sheet Tabelle3
